bitfinex/quotes_ETHUSD_20241105
["timestamp","ask_amount","ask_price","bid_price","bid_amount"]
[1730789822993,0.06044,2432.4,2432.3,7.66655767]
[1730789823901,0.06044,2432.4,2432.3,8.37787411]
[1730789824109,0.06044,2432.4,2432.3,9.44492725]
[1730789826453,0.06044,2432.4,2432.3,8.11609029]
[1730789826609,0.06044,2432.4,2432.3,8.6172606]
[1730789826809,0.06044,2432.4,2432.3,8.63689009]
[1730789827040,0.06044,2432.4,2432.3,9.65886365]
[1730789827210,0.06044,2432.4,2432.3,9.96552378]
[1730789827620,0.06044,2432.4,2432.3,10.11534054]
[1730789827929,0.06044,2432.4,2432.3,10.29102059]
[1730789828749,0.06044,2432.4,2432.3,11.00180513]
[1730789829835,0.06044,2432.4,2432.3,12.06798194]
[1730789830348,0.06044,2432.4,2432.3,11.00180513]
[1730789831646,0.06044,2432.4,2432.3,10.29102059]
[1730789832324,0.06044,2432.4,2432.3,8.92508042]
[1730789832522,0.06044,2432.4,2432.3,10.29102059]
[1730789832939,0.06044,2432.4,2432.3,10.83353607]
[1730789833953,0.06044,2432.4,2432.3,10.83462826]
[1730789834445,0.06044,2432.4,2432.3,9.76757512]
[1730789835072,0.06044,2432.4,2432.3,9.05620636]
[1730789836942,0.06044,2432.4,2432.3,8.20990755]
[1730789837150,0.06044,2432.4,2432.3,12.31437008]
[1730789837360,0.06044,2432.4,2432.3,12.31467292]
[1730789837657,0.06044,2432.4,2432.3,10.94873275]
[1730789839032,0.06044,2432.4,2432.3,11.65894228]
[1730789839656,0.06044,2432.4,2432.3,12.72425658]
[1730789840861,0.06044,2432.4,2432.3,11.42009003]
[1730789841027,0.06044,2432.4,2432.3,12.72515463]
[1730789841422,0.06044,2432.4,2432.3,13.4357646]
[1730789841632,0.06044,2432.4,2432.3,12.72555507]
[1730789842957,0.06044,2432.4,2432.3,14.09149524]
[1730789843123,0.06044,2432.4,2432.3,12.72555507]
[1730789843526,0.06044,2432.4,2432.3,12.01518536]
[1730789844754,0.06044,2432.4,2432.3,10.9496308]
[1730789845156,0.06044,2432.4,2432.3,12.31557097]
[1730789845858,0.06044,2432.4,2432.3,10.9496308]
[1730789846057,0.06044,2432.4,2432.3,12.31557097]
[1730789846523,0.06044,2432.4,2432.3,10.70360856]
[1730789846960,0.06044,2432.4,2432.3,11.01060224]
[1730789847156,0.06044,2432.4,2432.3,11.53220909]
[1730789847462,0.06044,2432.4,2432.3,13.50384499]
[1730789847669,0.06044,2432.4,2432.3,11.50491124]
[1730789847822,0.06044,2432.4,2432.3,12.87085141]
[1730789848023,0.06044,2432.4,2432.3,12.34924456]
[1730789848630,0.06044,2432.4,2432.3,13.47840827]
[1730789848969,0.06044,2432.4,2432.3,13.13262096]
[1730789849778,0.7686,2433.1,2432.5,0.01]
[1730789849929,0.7686,2433.1,2433.0,4.11015]
[1730789850456,0.7686,2433.1,2433.0,4.18177081]
[1730789850855,0.7686,2433.1,2433.0,5.02962201]
[1730789852650,0.7702,2433.6,2433.0,0.07162081]
[1730789852974,0.7702,2433.6,2433.2,4.10971]
[1730789853177,4.10917,2433.6,2433.2,4.10971]
[1730789853477,0.7702,2433.5,2433.3,0.39757427]
[1730789853770,0.7702,2433.5,2433.3,0.07162081]
[1730789854269,0.7702,2433.5,2433.4,0.07162081]
[1730789854474,0.7702,2433.5,2433.2,4.10971]
[1730789854682,0.7702,2433.5,2433.4,0.07162081]
[1730789855048,0.7702,2433.5,2433.2,4.10971]
[1730789855250,0.7702,2433.5,2433.3,0.39745208]
[1730789855446,0.7702,2433.5,2433.3,0.07162081]
[1730789855773,0.7702,2433.5,2433.2,4.10971]
[1730789856073,0.7702,2433.5,2433.3,0.32582983]
[1730789856277,0.7702,2433.5,2433.4,0.07162081]
[1730789856436,0.7702,2433.5,2433.2,4.10971]
[1730789856641,0.7702,2433.5,2433.3,0.39738598]
[1730789856979,0.7702,2433.5,2433.3,0.07162081]
[1730789857341,0.7702,2433.5,2433.2,4.10971]
[1730789857676,0.7702,2433.5,2433.3,0.32575181]
[1730789857841,0.7702,2433.5,2433.4,0.07142111]
[1730789858054,0.7702,2433.5,2433.2,4.10971]
[1730789858241,0.7702,2433.5,2433.3,0.39715773]
[1730789858442,0.7702,2433.5,2433.3,0.07142111]
[1730789858695,0.7702,2433.5,2433.2,4.10971]
[1730789858863,0.7702,2433.5,2433.4,0.07142111]
[1730789859888,0.7702,2433.5,2433.2,8.21939]
[1730789860032,0.7702,2433.5,2433.3,0.39713829]
[1730789860236,0.7702,2433.5,2433.3,0.07142111]
[1730789860449,0.7702,2433.5,2433.2,8.21939]
[1730789860752,0.7702,2433.5,2433.3,0.32572421]
[1730789860950,0.7702,2433.5,2433.3,0.07142111]
[1730789861167,0.7702,2433.5,2433.3,4.18104111]
[1730789861372,0.7702,2433.5,2433.3,4.10962]
[1730789861679,0.7702,2433.5,2433.4,0.07142111]
[1730789862809,5.37346801,2433.5,2433.4,0.07142111]
[1730789862953,0.7504,2433.2,2432.9,0.52126231]
[1730789863157,0.7504,2433.2,2433.0,4.95718081]
[1730789863357,0.7504,2433.2,2433.1,0.32580193]
[1730789863600,0.7504,2433.2,2433.1,0.3258106]
[1730789868873,0.7504,2433.2,2433.1,0.39739144]
[1730789870258,0.7504,2433.2,2433.1,0.07158084]
[1730789870462,0.7504,2433.2,2433.1,0.39753787]
[1730789873903,0.7504,2433.2,2433.1,0.07158084]
[1730789874106,0.7504,2433.2,2433.1,0.32592042]
[1730789874305,0.7504,2433.2,2433.1,0.39750126]
[1730789880818,0.7504,2433.2,2433.1,0.07158084]
[1730789881118,0.7504,2433.2,2433.1,0.32595423]
[1730789881321,0.7504,2433.2,2433.1,0.3975151]
[1730789883378,0.7504,2433.2,2433.1,0.39753259]
[1730789883780,0.7504,2433.2,2433.1,0.07156087]
[1730789884185,0.7504,2433.2,2433.1,0.39750774]
[1730789886599,0.7504,2433.2,2433.1,0.91906176]
[1730789890897,0.7705,2433.4,2433.1,5.02904176]
[1730789891123,0.7705,2433.4,2433.2,0.32604104]
[1730789891318,0.7705,2433.4,2433.3,0.39530851]
[1730789892027,0.8213,2433.6,2433.3,4.50494851]
[1730789892230,0.8213,2433.6,2433.4,0.32604104]
[1730789892543,0.8213,2433.6,2433.5,0.06906777]
[1730789892910,0.8213,2433.6,2433.3,8.2192]
[1730789893111,0.8213,2433.6,2433.4,4.50455901]
[1730789893339,0.8213,2433.6,2433.4,4.17853777]
[1730789893647,0.8213,2433.6,2433.4,0.06906777]
[1730789894007,0.8213,2433.6,2433.2,4.1098]
[1730789894242,0.8213,2433.6,2433.5,0.06906777]
[1730789894443,0.8213,2433.6,2433.2,4.1098]
[1730789894613,0.8213,2433.6,2433.5,0.06906777]
[1730789894818,0.8213,2433.6,2433.2,4.1098]
[1730789895135,0.8213,2433.6,2433.3,0.32595694]
[1730789895310,0.8213,2433.6,2433.4,0.32595694]
[1730789895511,0.8213,2433.6,2433.2,4.1098]
[1730789895728,0.8213,2433.6,2433.3,0.39499896]
[1730789895927,0.8213,2433.6,2433.4,0.32593119]
[1730789896110,0.8213,2433.6,2433.2,4.1097]
[1730789896449,0.8213,2433.6,2433.3,0.39499649]
[1730789896641,0.8213,2433.6,2433.4,0.32592872]
[1730789896817,0.8213,2433.6,2433.3,0.06906777]
[1730789897018,4.1093,2433.5,2433.4,0.32590938]
[1730789897225,4.8595,2433.5,2433.4,0.39497715]
[1730789900442,0.7502,2433.5,2433.4,0.39497715]
[1730789900639,0.7502,2433.5,2433.4,0.32590938]
[1730789901037,0.7502,2433.5,2433.4,0.39497715]
[1730789901724,4.8595,2433.5,2433.4,0.39497715]
[1730789901930,0.7502,2433.5,2433.4,0.39497715]
[1730789905336,0.7502,2433.5,2433.4,0.39495402]
[1730789905768,0.7502,2433.5,2433.4,0.39495159]
[1730789906141,2.15885936,2433.6,2433.4,0.39495159]
[1730789906471,2.15885936,2433.6,2433.4,0.06906777]
[1730789907657,4.31753705,2433.6,2433.4,0.06906777]
[1730789907833,2.15885936,2433.6,2433.4,0.06906777]
[1730789908234,4.9365301,2433.7,2433.4,0.06906777]
[1730789909372,9.0456401,2433.7,2433.4,0.06906777]
[1730789909747,9.0456401,2433.7,2433.2,4.10978]
[1730789909942,9.0456401,2433.7,2433.5,0.06635537]
[1730789910249,4.10913,2433.6,2433.2,4.10978]
[1730789910569,4.10913,2433.6,2433.3,0.32590491]
[1730789910773,4.10913,2433.6,2433.2,4.10978]
[1730789911130,4.10913,2433.6,2433.3,0.32588122]
[1730789911334,4.10913,2433.6,2433.2,4.10978]
[1730789911534,4.10913,2433.6,2433.3,0.3258996]
[1730789911730,4.10913,2433.6,2433.2,4.10978]
[1730789911933,4.10913,2433.6,2433.3,0.32588993]
[1730789912134,4.10913,2433.6,2433.2,4.10978]
[1730789912365,4.10913,2433.6,2433.3,0.32590673]
[1730789912533,4.10913,2433.6,2433.2,4.10978]
[1730789912929,4.10913,2433.6,2433.3,0.325907]
[1730789913133,4.10913,2433.6,2433.2,4.10978]
[1730789913341,2.15867641,2433.5,2433.3,0.32591461]
[1730789913543,2.15867641,2433.5,2433.4,0.32591461]
[1730789914060,2.15867641,2433.5,2433.4,0.3900681]
[1730789916274,2.15867641,2433.5,2433.4,0.39012361]
[1730789918277,4.10916,2433.6,2433.4,0.39012361]
[1730789918475,4.10916,2433.6,2433.4,0.06415349]
[1730789918837,4.10916,2433.6,2433.1,4.10996]
[1730789918983,2.15851759,2433.5,2433.2,0.84765277]
[1730789919185,2.15851759,2433.5,2433.3,0.3260176]
[1730789919489,2.15851759,2433.5,2433.4,0.3260176]
[1730789920185,8.19543836,2433.5,2432.8,4.92734]
[1730789920347,2.96571759,2433.5,2433.0,4.11004]
[1730789920666,4.10947,2433.4,2433.1,0.84775509]
[1730789920870,4.10947,2433.4,2433.2,0.84775509]
[1730789921066,4.10947,2433.4,2433.3,0.32605696]
[1730789921789,7.07503759,2433.5,2433.3,0.32605696]
[1730789922081,7.07503759,2433.5,2433.4,0.32605696]
[1730789922450,7.07503759,2433.5,2433.1,0.7674]
[1730789922653,7.07503759,2433.5,2433.2,0.84776285]
[1730789922853,7.07503759,2433.5,2433.3,0.32605994]
[1730789923171,4.10951,2433.4,2433.1,0.7674]
[1730789923548,4.10951,2433.4,2433.2,0.3260413]
[1730789923866,4.10951,2433.4,2433.1,0.7674]
[1730789923867,4.10951,2433.4,2433.3,0.3260413]
[1730789926197,7.07393759,2433.5,2433.3,0.3260413]
[1730789926365,7.07393759,2433.5,2433.1,0.7674]
[1730789926569,7.07393759,2433.5,2433.2,0.84774553]
[1730789926769,7.07393759,2433.5,2433.3,0.32605328]
[1730789926969,7.07393759,2433.5,2433.1,0.7674]
[1730789927172,7.07393759,2433.5,2433.2,0.32605138]
[1730789927373,7.07393759,2433.5,2433.3,0.32605138]
[1730789927558,7.07393759,2433.5,2433.1,0.7674]
[1730789927880,4.10947,2433.4,2433.2,0.8477818]
[1730789928056,4.10947,2433.4,2433.3,0.32606723]
[1730789928865,4.10947,2433.4,2433.3,0.39025063]
[1730789929295,4.91652,2433.5,2433.3,0.39025063]
[1730789929495,4.91652,2433.5,2433.3,0.0641834]
[1730789929675,4.91652,2433.5,2433.1,4.87737]
[1730789929863,4.91652,2433.5,2433.2,0.84778381]
[1730789930203,4.91652,2433.5,2433.3,0.326068]
[1730789930368,4.91652,2433.5,2433.2,0.0641834]
[1730789930556,4.91652,2433.5,2433.1,0.7674]
[1730789930756,4.91652,2433.5,2433.3,0.32606064]
[1730789930981,4.91652,2433.5,2433.4,0.0642233]
[1730789931172,4.91652,2433.5,2433.4,0.39028394]
[1730789932394,0.8072,2433.5,2433.4,0.0642233]
[1730789932598,0.8072,2433.5,2433.4,0.39034132]
[1730789932799,2.65150416,2433.7,2433.4,0.32611802]
[1730789932800,7.56328416,2433.7,2433.4,0.32611802]
[1730789933014,3.45430416,2433.7,2433.5,0.32613824]
[1730789933295,3.45430416,2433.7,2433.4,0.0642233]
[1730789933461,3.45430416,2433.7,2433.5,0.32609489]
[1730789933657,3.45430416,2433.7,2433.5,0.0642233]
[1730789934096,3.45430416,2433.7,2433.3,4.10962]
[1730789934295,6.45430416,2433.7,2433.4,0.32609349]
[1730789934602,6.45430416,2433.7,2433.5,0.39031679]
[1730789934900,4.86583,2433.6,2433.5,0.0642233]
[1730789935261,4.86583,2433.6,2433.2,0.52178833]
[1730789935502,4.86583,2433.6,2433.1,4.8773]
[1730789935503,4.86583,2433.6,2433.5,0.06420335]
[1730789935999,0.7567,2433.6,2433.2,0.52179798]
[1730789936161,0.7567,2433.6,2433.5,0.06420335]
[1730789936362,0.7567,2433.6,2433.2,4.10979]
[1730789936597,0.7567,2433.6,2433.3,0.91206539]
[1730789936761,0.7567,2433.6,2433.4,0.32609809]
[1730789936960,0.7567,2433.6,2433.2,4.10979]
[1730789937184,0.7567,2433.6,2433.3,0.39029455]
[1730789937384,0.7567,2433.6,2433.4,0.3260912]
[1730789937611,0.7567,2433.6,2433.5,0.3260912]
[1730789938031,0.7567,2433.6,2433.5,0.06420335]
[1730789938199,0.7567,2433.6,2433.5,0.39022817]
[1730789938409,4.86583,2433.6,2433.5,0.32602482]
[1730789938590,6.32846842,2433.6,2433.5,0.06420335]
[1730789938791,4.10989,2433.2,2432.9,0.2819247]
[1730789938990,0.7699,2433.1,2433.0,0.84783786]
[1730789939291,4.87988,2433.1,2433.0,0.32608879]
[1730789939710,0.7699,2433.1,2433.0,0.32608879]
[1730789940931,4.87988,2433.1,2433.0,0.32603521]
[1730789941925,0.7699,2433.1,2433.0,0.32603521]
[1730789943896,0.7699,2433.1,2433.0,0.06457243]
[1730789944129,2.15982768,2433.2,2433.0,0.39039414]
[1730789944322,2.15982768,2433.2,2432.8,8.2208]
[1730789944523,2.15982768,2433.2,2432.9,4.11031]
[1730789944709,2.15982768,2433.2,2433.0,0.39037009]
[1730789945031,2.15982768,2433.2,2433.0,0.06457243]
[1730789946042,4.31966078,2433.2,2433.0,0.06457243]
[1730789946393,2.15982768,2433.2,2433.0,0.06457243]
[1730789946599,6.26966768,2433.2,2433.0,0.06457243]
[1730789947037,2.15982768,2433.2,2432.8,4.63154768]
[1730789947310,2.15982768,2433.2,2432.9,0.3256688]
[1730789947509,2.15982768,2433.2,2433.0,0.39024123]
[1730789947719,2.15982768,2433.2,2433.0,0.06457243]
[1730789947941,2.15982768,2433.2,2432.8,4.11039]
[1730789948096,2.15982768,2433.2,2432.9,0.39020737]
[1730789948297,6.26972768,2433.2,2433.0,0.32563494]
[1730789948531,6.26972768,2433.2,2432.7,4.93223]
[1730789948744,6.26972768,2433.2,2432.8,0.91134855]
[1730789948930,6.26972768,2433.2,2432.9,0.32568043]
[1730789949133,6.26972768,2433.2,2433.0,0.32568043]
[1730789949436,6.26972768,2433.2,2433.1,0.06457243]
[1730789949814,6.26972768,2433.2,2432.8,0.52114411]
[1730789949815,0.8041,2433.1,2432.8,0.52114411]
[1730789950139,0.8041,2433.1,2432.9,0.32572312]
[1730789950342,0.8041,2433.1,2433.0,0.32572312]
[1730789951206,0.8041,2433.1,2433.0,0.32572993]
[1730789951546,4.91408,2433.1,2433.0,0.32572993]
[1730789951716,4.91408,2433.1,2432.6,4.87212]
[1730789951717,5.816478,2433.1,2432.6,4.87212]
[1730789951915,4.91408,2433.1,2432.7,0.84688749]
[1730789952109,4.91408,2433.1,2432.8,0.32572326]
[1730789952307,4.91408,2433.1,2432.6,4.87212]
[1730789952508,4.91408,2433.1,2432.7,0.84687749]
[1730789952727,4.91408,2433.1,2432.8,0.32571942]
[1730789953029,4.91408,2433.1,2432.6,4.87212]
[1730789953256,4.91408,2433.1,2432.7,0.32572432]
[1730789953462,4.91408,2433.1,2432.6,4.87212]
[1730789953463,4.91408,2433.1,2432.8,0.32572432]
[1730789953755,4.91408,2433.1,2432.6,4.87212]
[1730789953756,2.006498,2433.1,2432.6,4.87212]
[1730789953931,4.11016,2433.0,2432.7,0.32568563]
[1730789954130,4.11016,2433.0,2432.8,0.32568563]
[1730789954318,4.11016,2433.0,2432.6,4.87212]
[1730789954514,4.11016,2433.0,2432.7,0.32568195]
[1730789954719,4.11016,2433.0,2432.6,4.87212]
[1730789954915,4.11016,2433.0,2432.7,0.32571126]
[1730789955155,4.11016,2433.0,2432.8,0.32571126]
[1730789955352,4.11016,2433.0,2432.6,4.11072]
[1730789955558,4.11016,2433.0,2432.7,0.32568108]
[1730789955753,4.11016,2433.0,2432.8,0.32568108]
[1730789955961,4.11016,2433.0,2432.6,4.11072]
[1730789956134,4.11016,2433.0,2432.7,0.32567396]
[1730789956336,4.11016,2433.0,2432.8,0.32567396]
[1730789956536,4.11016,2433.0,2432.6,0.52106863]
[1730789956742,4.11016,2433.0,2432.7,0.32566628]
[1730789957031,4.11016,2433.0,2432.6,0.52107161]
[1730789957235,4.11016,2433.0,2432.7,0.32570647]
[1730789957463,4.11016,2433.0,2432.6,0.52112458]
[1730789957661,4.11016,2433.0,2432.5,5.47691017]
[1730789957662,4.11016,2433.0,2432.7,0.32569934]
[1730789957819,4.11016,2433.0,2432.6,0.52111394]
[1730789958023,8.2204,2433.0,2432.7,0.32569192]
[1730789958242,8.2204,2433.0,2432.6,0.52111593]
[1730789958472,4.11016,2433.0,2432.7,0.32568002]
[1730789958652,4.11016,2433.0,2432.5,5.47691017]
[1730789958860,4.11016,2433.0,2432.6,0.32567633]
[1730789959145,0.7609,2432.8,2432.7,0.32567633]
[1730789959322,4.87151,2432.8,2432.3,4.63247418]
[1730789959523,4.87151,2432.8,2432.4,0.91209265]
[1730789959724,4.87151,2432.8,2432.5,0.32573752]
[1730789959941,4.11066,2432.7,2432.3,4.11131]
[1730789960144,4.11066,2432.7,2432.4,0.39095038]
[1730789960350,4.11066,2432.7,2432.5,0.32575943]
[1730789960548,4.11066,2432.7,2432.3,0.52114205]
[1730789960741,4.11066,2432.7,2432.4,0.39089814]
[1730789960929,4.11066,2432.7,2432.5,0.32570719]
[1730789961131,4.11066,2432.7,2432.3,4.11133]
[1730789961318,4.11066,2432.7,2432.4,0.39084239]
[1730789961552,4.11066,2432.7,2432.4,0.06519095]
[1730789962658,8.2214,2432.7,2432.4,0.06519095]
[1730789962831,4.11083,2432.6,2432.4,0.06519095]
[1730789963033,0.8114,2432.5,2432.4,0.06519095]
[1730789963240,0.8114,2432.5,2432.4,0.32563514]
[1730789963536,0.8114,2432.5,2432.4,0.39082609]
[1730789965537,0.8114,2432.5,2432.4,0.06519095]
[1730789965737,0.8114,2432.5,2432.4,0.32560706]
[1730789966051,0.8114,2432.5,2432.4,0.3915065]
[1730789967056,4.11085,2432.6,2432.4,0.3915065]
[1730789967230,4.11085,2432.6,2432.4,0.06589944]
[1730789967568,4.11085,2432.6,2432.2,6.27731017]
[1730789967730,4.11085,2432.6,2432.3,0.39154891]
[1730789967933,4.11085,2432.6,2432.4,0.32563949]
[1730789968152,4.11085,2432.6,2432.5,0.06587948]
[1730789968356,4.11085,2432.6,2432.3,0.52115302]
[1730789968557,4.11085,2432.6,2432.4,0.39160386]
[1730789968755,4.11085,2432.6,2432.4,0.06587948]
[1730789969163,4.11085,2432.6,2432.3,0.52117399]
[1730789969362,4.11085,2432.6,2432.4,0.39162259]
[1730789969564,4.11085,2432.6,2432.4,0.06587948]
[1730789969767,4.11085,2432.6,2432.2,6.27731017]
[1730789969976,4.11085,2432.6,2432.3,0.39158224]
[1730789970148,4.11085,2432.6,2432.4,0.32570276]
[1730789970348,4.11085,2432.6,2432.2,6.27731017]
[1730789970549,4.11085,2432.6,2432.3,0.39159013]
[1730789970761,4.11085,2432.6,2432.4,0.32571065]
[1730789970973,0.7676,2432.5,2432.0,3.83439217]
[1730789971280,4.11134,2432.3,2432.1,0.06587948]
[1730789971436,8.22259,2432.4,2432.2,0.32575163]
[1730789971780,4.69532037,2432.4,2431.9,4.112]
[1730789972071,11.22259,2432.4,2432.0,0.32574838]
[1730789972238,11.22259,2432.4,2432.1,0.32574838]
[1730789972439,11.22259,2432.4,2432.0,0.06585952]
[1730789972659,11.22254,2432.4,2431.9,4.112]
[1730789972860,11.22254,2432.4,2432.1,0.06585952]
[1730789973062,11.22254,2432.4,2431.9,4.63312432]
[1730789973340,11.22254,2432.4,2432.0,0.3256395]
[1730789973660,11.22254,2432.4,2432.1,0.06585952]
[1730789974049,7.11125,2432.4,2431.9,8.224]
[1730789974251,7.11125,2432.4,2432.2,0.06585952]
[1730789974470,7.11125,2432.4,2431.9,4.112]
[1730789974777,11.22251,2432.4,2432.0,0.32559536]
[1730789974976,7.11125,2432.4,2432.1,0.06585952]
[1730789975180,7.11125,2432.4,2431.9,4.112]
[1730789975380,7.11125,2432.4,2432.0,0.39142086]
[1730789975541,7.11125,2432.4,2432.0,0.06585952]
[1730789975965,11.22255,2432.4,2432.0,0.06585952]
[1730789976184,0.7738,2432.2,2432.0,0.06585952]
[1730789976546,0.7738,2432.2,2432.1,0.06614899]
[1730789976846,0.7738,2432.2,2431.9,4.11198]
[1730789977048,0.7738,2432.2,2432.1,0.06614899]
[1730789977256,0.7738,2432.2,2432.0,4.11178]
[1730789977474,7.93149,2432.4,2432.1,0.06614899]
[1730789977973,7.93149,2432.4,2432.2,0.06614899]
[1730789978293,7.93149,2432.4,2432.0,0.32543299]
[1730789978461,7.93149,2432.4,2432.3,0.06614899]
[1730789978663,4.11134,2432.3,2432.0,0.32544265]
[1730789978904,4.11134,2432.3,2431.9,5.47792017]
[1730789979073,4.11134,2432.3,2432.0,0.32544448]
[1730789979274,4.11134,2432.3,2431.9,5.47792017]
[1730789979474,4.11134,2432.3,2432.0,0.32546759]
[1730789979687,4.11134,2432.3,2431.9,5.47792017]
[1730789979986,4.11134,2432.3,2432.0,0.32548711]
[1730789980196,4.11134,2432.3,2431.9,5.47792017]
[1730789980493,4.11134,2432.3,2432.0,0.32551512]
[1730789980788,4.11134,2432.3,2431.9,5.99875867]
[1730789980964,4.11134,2432.3,2432.0,0.32551959]
[1730789981161,4.11134,2432.3,2432.1,0.32551959]
[1730789981373,4.11134,2432.3,2431.9,5.47792017]
[1730789981683,4.11134,2432.3,2432.0,0.32556459]
[1730789981851,4.11134,2432.3,2432.1,0.32556459]
[1730789982054,4.11134,2432.3,2431.9,5.47792017]
[1730789982260,4.11134,2432.3,2432.0,0.32558278]
[1730789982555,4.11134,2432.3,2432.1,0.32558278]
[1730789982894,4.11134,2432.3,2431.9,5.47792017]
[1730789983062,4.11134,2432.3,2432.0,0.32562568]
[1730789983253,4.11134,2432.3,2432.1,0.32562568]
[1730789983452,4.9079,2432.2,2431.8,4.11217]
[1730789983701,4.9079,2432.2,2431.9,0.32568388]
[1730789983992,4.9079,2432.2,2432.0,0.3257012]
[1730789984148,6.109824,2432.2,2431.7,1.646343]
[1730789984352,4.11178,2432.1,2431.8,0.32574504]
[1730789984573,4.11178,2432.1,2431.9,0.32574504]
[1730789984790,0.8271,2431.9,2431.5,4.92024]
[1730789985000,0.8271,2431.9,2431.6,4.95963236]
[1730789985181,4.93888,2432.1,2431.7,0.32581744]
[1730789985507,4.93888,2432.1,2431.8,0.32581744]
[1730789985649,4.93888,2432.1,2431.6,5.47844017]
[1730789985850,4.93888,2432.1,2431.7,0.32581571]
[1730789986093,9.05064,2432.1,2431.6,5.47844017]
[1730789986295,9.05064,2432.1,2431.7,0.32581092]
[1730789986453,9.05064,2432.1,2431.8,0.32581092]
[1730789986661,9.05064,2432.1,2431.6,5.47844017]
[1730789986990,4.11192,2432.0,2431.7,0.32577909]
[1730789987179,4.11192,2432.0,2431.6,5.47844017]
[1730789987383,4.11192,2432.0,2431.7,0.32578604]
[1730789987556,4.11192,2432.0,2431.6,5.47844017]
[1730789987877,4.11192,2432.0,2431.7,0.32578529]
[1730789988068,4.11192,2432.0,2431.6,5.47844017]
[1730789988403,4.11192,2432.0,2431.7,0.32580962]
[1730789988556,4.11192,2432.0,2431.6,1.36594017]
[1730789988757,3.0,2432.1,2431.8,1.36594017]
[1730789988987,7.4,2432.6,2431.9,4.49986019]
[1730789988988,0.83,2432.3,2431.9,4.49986019]
[1730789989189,4.94133,2432.3,2432.0,0.32574972]
[1730789989394,4.94133,2432.3,2431.8,6.25347017]
[1730789989395,9.05282,2432.3,2431.8,6.25347017]
[1730789989592,4.11153,2432.2,2432.1,0.06219047]
[1730789989794,4.11153,2432.2,2431.8,6.25347017]
[1730789990099,4.11153,2432.2,2431.9,0.38798008]
[1730789990256,4.11153,2432.2,2432.0,0.32578961]
[1730789990454,4.11153,2432.2,2431.9,0.06219047]
[1730789990696,4.11153,2432.2,2432.0,0.32581369]
[1730789990880,4.11153,2432.2,2432.0,0.06219047]
[1730789991284,3.83,2432.3,2431.8,4.88753]
[1730789991470,7.94144,2432.3,2432.1,0.06219047]
[1730789991792,7.94144,2432.3,2432.2,0.06219047]
[1730789992099,3.83,2432.3,2431.8,6.25347017]
[1730789992280,8.22247,2432.4,2432.2,0.06219047]
[1730789992594,11.22252,2432.4,2432.3,0.06231017]
[1730789992890,4.11134,2432.3,2431.9,4.11193]
[1730789993101,7.11121,2432.4,2432.0,0.32583244]
[1730789993411,7.11121,2432.4,2432.1,0.32583244]
[1730789993589,7.11121,2432.4,2432.0,0.06231017]
[1730789993956,7.11121,2432.4,2432.1,0.32584841]
[1730789994105,7.11121,2432.4,2432.2,0.32584841]
[1730789994270,7.11121,2432.4,2431.9,4.11193]
[1730789994604,4.88889,2432.5,2432.0,4.96096021]
[1730789994814,4.88889,2432.5,2432.0,4.17406017]
[1730789995113,4.11119,2432.4,2432.1,0.32659939]
[1730789995261,4.11119,2432.4,2432.2,0.32659939]
[1730789995464,4.11119,2432.4,2432.2,0.06230017]
[1730789996112,4.11119,2432.4,2432.0,4.63447381]
[1730789996281,4.11119,2432.4,2432.1,0.32669085]
[1730789996484,4.11119,2432.4,2432.2,0.32669085]
[1730789996682,4.11119,2432.4,2432.1,0.06230017]
[1730789996877,4.11119,2432.4,2432.2,0.32669045]
[1730789997102,4.11119,2432.4,2432.2,0.06230017]
[1730789997305,4.11119,2432.4,2432.0,4.11181]
[1730789997613,4.11119,2432.4,2432.1,0.84956347]
[1730789997806,4.11119,2432.4,2432.2,0.32674467]
[1730789998012,4.11119,2432.4,2432.1,0.06230017]
[1730789998231,4.11119,2432.4,2432.2,0.3267972]
[1730789998376,4.11119,2432.4,2432.2,0.06230017]
[1730789998577,4.11119,2432.4,2432.3,0.32685195]
[1730789998801,4.11119,2432.4,2432.3,0.38915789]
[1730789999191,4.11119,2432.4,2432.3,0.06230017]
[1730789999391,4.11119,2432.4,2432.0,4.11181]
[1730789999592,4.11119,2432.4,2432.1,0.91226182]
[1730789999796,4.11119,2432.4,2432.2,0.32690566]
[1730790000026,4.11119,2432.4,2432.3,0.32690566]
[1730790000516,0.7778,2432.5,2432.3,0.32690566]
[1730790000718,3.0,2432.7,2432.4,0.32690566]
[1730790000719,3.7627,2432.7,2432.4,0.32690566]
[1730790001017,0.7627,2432.7,2432.5,0.32690566]
[1730790001319,0.7627,2432.7,2432.3,5.47719017]
[1730790001320,0.7627,2432.7,2432.6,0.32676995]
[1730790001680,0.7627,2432.7,2432.2,4.9139]
[1730790002017,4.11093,2432.6,2432.3,0.326712]
[1730790002217,4.11093,2432.6,2432.4,0.326712]
[1730790002218,4.11101,2432.5,2432.4,0.326712]
[1730790002420,4.11133,2432.3,2432.2,0.52276509]
[1730790002636,4.11133,2432.3,2432.2,0.32678917]
[1730790002807,4.11133,2432.3,2431.9,0.52286959]
[1730790002808,4.89963,2432.3,2432.0,0.52286959]
[1730790003008,4.89963,2432.3,2432.1,0.32679599]
[1730790003193,2.12597302,2432.3,2431.9,0.52283664]
[1730790003396,4.11162,2432.2,2432.0,0.32676733]
[1730790003717,4.11162,2432.2,2432.1,0.32676733]
[1730790003882,4.11169,2432.1,2431.8,0.5228757]
[1730790004083,4.11169,2432.1,2431.9,0.84966837]
[1730790004289,4.11169,2432.1,2432.0,0.32679267]
[1730790004589,4.90559,2432.1,2432.0,0.32666399]
[1730790004997,0.7939,2432.1,2432.0,0.32666399]
[1730790006314,4.90557,2432.1,2432.0,0.32666399]
[1730790007127,4.90557,2432.1,2431.6,4.90781]
[1730790007330,4.90557,2432.1,2431.7,0.84944552]
[1730790007628,4.90557,2432.1,2431.8,0.32670715]
[1730790007792,4.90557,2432.1,2431.9,0.32670715]
[1730790007993,4.90557,2432.1,2431.6,4.90781]
[1730790008214,4.11187,2432.0,2431.7,0.84941232]
[1730790008420,4.11187,2432.0,2431.8,0.32668891]
[1730790008789,4.90557,2432.1,2431.8,0.32668891]
[1730790009011,9.01734,2432.1,2431.9,0.32668891]
[1730790009333,4.11185,2432.0,2431.7,0.52274477]
[1730790009624,4.11185,2432.0,2431.8,0.32669617]